fUST/lending_fUST_20250211
["ID","MTS","AMOUNT","RATE_DAILY","PERIOD"]
[352631285,1739209837670,-210.67165032,0.00011643,2]
[352631286,1739209837679,-565.89,0.00011643,2]
[352631287,1739209837689,-500.0,0.00011643,2]
[352631288,1739209837699,-500.0,0.00011643,2]
[352631289,1739209837708,-607.83,0.00011643,2]
[352631290,1739209837718,-1082.83,0.00011643,2]
[352631291,1739209837727,-500.0,0.00011643,2]
[352631292,1739209837737,-663.82,0.00011643,2]
[352631293,1739209837746,-500.0,0.00011643,2]
[352631294,1739209837756,-500.0,0.00011643,2]
[352631295,1739209837767,-3054.6,0.00011643,2]
[352631296,1739209837776,-1332.67,0.00011643,2]
[352631297,1739209837785,-500.0,0.00011643,2]
[352631298,1739209837795,-500.0,0.00011643,2]
[352631300,1739209837804,-1339.57,0.00011643,2]
[352631302,1739209837814,-500.0,0.00011643,2]
[352631304,1739209837826,-619.65,0.00011643,2]
[352631306,1739209837835,-500.0,0.00011643,2]
[352631308,1739209837845,-500.0,0.00011643,2]
[352631310,1739209837855,-1100.39,0.00011643,2]
[352631312,1739209837864,-1611.17,0.00011643,2]
[352631314,1739209837873,-748.63,0.00011643,2]
[352631316,1739209837882,-500.0,0.00011643,2]
[352631318,1739209837893,-5122.84,0.00011643,2]
[352631320,1739209837903,-500.0,0.00011643,2]
[352631322,1739209837912,-577.22,0.00011643,2]
[352631324,1739209837922,-500.0,0.00011643,2]
[352631326,1739209837933,-500.0,0.00011643,2]
[352631328,1739209837942,-500.0,0.00011643,2]
[352631329,1739209837952,-500.0,0.00011643,2]
[352631331,1739209837962,-500.0,0.00011643,2]
[352631333,1739209837971,-500.0,0.0001178,2]
[352631335,1739209837981,-500.0,0.0001178,2]
[352631337,1739209837990,-500.0,0.0001178,2]
[352631339,1739209837999,-500.0,0.0001178,2]
[352631341,1739209838009,-500.0,0.0001178,2]
[352631343,1739209838019,-500.0,0.0001178,2]
[352631345,1739209838028,-500.0,0.0001178,2]
[352631347,1739209838038,-500.0,0.0001178,2]
[352631349,1739209838048,-500.0,0.0001178,2]
[352631351,1739209838058,-357.36,0.0001178,2]
[352631353,1739209838067,-7678.08,0.0001178,2]
[352631354,1739209838079,-500.0,0.0001178,2]
[352631355,1739209838088,-1409.39,0.0001178,2]
[352631356,1739209838097,-500.0,0.0001178,2]
[352631357,1739209838106,-526.54,0.0001178,2]
[352631358,1739209838116,-500.0,0.0001178,2]
[352631359,1739209838125,-500.0,0.0001178,2]
[352631360,1739209838135,-502.34,0.0001178,2]
[352631361,1739209838144,-711.8,0.0001178,2]
[352631362,1739209838154,-1559.31,0.0001178,2]
[352631363,1739209838163,-500.0,0.0001178,2]
[352631364,1739209838172,-500.0,0.0001178,2]
[352631365,1739209838181,-3171.07527778,0.0001178,2]
[352631375,1739209838291,-2578.41472222,0.0001178,2]
[352631377,1739209838300,-589.11,0.0001178,2]
[352631378,1739209838310,-565.89,0.0001178,2]
[352631380,1739209838322,-500.0,0.0001178,2]
[352631382,1739209838332,-500.0,0.0001178,2]
[352631385,1739209838342,-607.83,0.0001178,2]
[352631387,1739209838352,-1082.83,0.0001178,2]
[352631389,1739209838362,-500.0,0.0001178,2]
[352631391,1739209838372,-663.82,0.0001178,2]
[352631393,1739209838382,-500.0,0.0001178,2]
[352631395,1739209838391,-500.0,0.0001178,2]
[352631397,1739209838400,-3054.6,0.0001178,2]
[352631399,1739209838409,-1332.67,0.0001178,2]
[352631401,1739209838418,-500.0,0.0001178,2]
[352631403,1739209838428,-500.0,0.0001178,2]
[352631405,1739209838439,-151.0,0.0001178,2]
[352631407,1739209838449,-1339.57,0.0001178,2]
[352631409,1739209838458,-207.185772,0.0001178,2]
[352631411,1739209838468,-207.185772,0.0001178,2]
[352631413,1739209838477,-500.0,0.0001178,2]
[352631415,1739209838486,-619.65,0.0001178,2]
[352631417,1739209838496,-151.0,0.0001178,2]
[352631419,1739209838505,-500.0,0.0001178,2]
[352631420,1739209838513,-1100.39,0.0001178,2]
[352631422,1739209838523,-1611.17,0.0001178,2]
[352631424,1739209838532,-748.63,0.0001178,2]
[352631426,1739209838541,-636.41,0.0001178,2]
[352631428,1739209838550,-5122.84,0.0001178,2]
[352631430,1739209838559,-500.0,0.0001178,2]
[352631432,1739209838568,-500.0,0.0001178,2]
[352631434,1739209838578,-605.45,0.0001178,2]
[352631436,1739209838587,-500.0,0.0001178,2]
[352631438,1739209838596,-500.0,0.0001178,2]
[352631440,1739209838605,-151.0,0.000118,2]
[352631442,1739209838615,-500.0,0.0001187,2]
[352631444,1739209838624,-500.0,0.0001187,2]
[352631446,1739209838633,-500.0,0.0001187,2]
[352631448,1739209838642,-500.0,0.0001187,2]
[352631450,1739209838651,-500.0,0.00011917,2]
[352631452,1739209838660,-500.0,0.00011917,2]
[352631454,1739209838669,-500.0,0.00011917,2]
[352631456,1739209838679,-500.0,0.00011917,2]
[352631458,1739209838688,-500.0,0.00011917,2]
[352631460,1739209838698,-500.0,0.00011917,2]
[352631462,1739209838707,-500.0,0.00011917,2]
[352631464,1739209838716,-500.0,0.00011917,2]
[352631466,1739209838725,-500.0,0.00011917,2]
[352631468,1739209838734,-7678.08,0.00011917,2]
[352631470,1739209838743,-500.0,0.00011917,2]
[352631472,1739209838753,-1409.39,0.00011917,2]
[352631474,1739209838762,-500.0,0.00011917,2]
[352631476,1739209838772,-526.54,0.00011917,2]
[352631478,1739209838781,-500.0,0.00011917,2]
[352631480,1739209838791,-500.0,0.00011917,2]
[352631482,1739209838800,-502.34,0.00011917,2]
[352631485,1739209838810,-711.8,0.00011917,2]
[352631487,1739209838820,-1559.31,0.00011917,2]
[352631488,1739209838829,-500.0,0.00011917,2]
[352631490,1739209838838,-500.0,0.00011917,2]
[352631492,1739209838848,-5749.49,0.00011917,2]
[352631494,1739209838857,-589.11,0.00011917,2]
[352631496,1739209838866,-565.89,0.00011917,2]
[352631498,1739209838876,-500.0,0.00011917,2]
[352631500,1739209838885,-500.0,0.00011917,2]
[352631502,1739209838894,-607.83,0.00011917,2]
[352631504,1739209838904,-1082.83,0.00011917,2]
[352631506,1739209838913,-517.4,0.00011917,2]
[352631508,1739209838923,-663.82,0.00011917,2]
[352631510,1739209838932,-500.0,0.00011917,2]
[352631512,1739209838945,-500.0,0.00011917,2]
[352631514,1739209838955,-3054.6,0.00011917,2]
[352631516,1739209838964,-1332.67,0.00011917,2]
[352631518,1739209838974,-500.0,0.00011917,2]
[352631520,1739209838983,-1339.57,0.00011917,2]
[352631522,1739209838992,-500.0,0.00011917,2]
[352631525,1739209839002,-619.65,0.00011917,2]
[352631527,1739209839011,-1100.39,0.00011917,2]
[352631529,1739209839021,-500.0,0.00011917,2]
[352631531,1739209839033,-1611.17,0.00011917,2]
[352631533,1739209839042,-748.63,0.00011917,2]
[352631535,1739209839058,-5122.84,0.00011917,2]
[352631537,1739209839067,-500.0,0.00011917,2]
[352631539,1739209839080,-500.0,0.00011917,2]
[352631541,1739209839089,-500.0,0.00011917,2]
[352631543,1739209839099,-500.0,0.00011917,2]
[352631545,1739209839109,-500.0,0.00012054,2]
[352631547,1739209839118,-500.0,0.00012054,2]
[352631549,1739209839127,-500.0,0.00012054,2]
[352631551,1739209839136,-500.0,0.00012054,2]
[352631553,1739209839145,-500.0,0.00012054,2]
[352631555,1739209839154,-500.0,0.00012054,2]
[352631565,1739209839249,-500.0,0.00012054,2]
[352631567,1739209839260,-396.17,0.00012054,2]
[352631569,1739209839270,-500.0,0.00012054,2]
[352631572,1739209839280,-7678.08,0.00012054,2]
[352631573,1739209839290,-500.0,0.00012054,2]
[352631576,1739209839299,-500.0,0.00012054,2]
[352631578,1739209839308,-1409.39,0.00012054,2]
[352631579,1739209839318,-526.54,0.00012054,2]
[352631581,1739209839328,-500.0,0.00012054,2]
[352631584,1739209839338,-500.0,0.00012054,2]
[352631586,1739209839348,-502.34,0.00012054,2]
[352631588,1739209839357,-711.8,0.00012054,2]
[352631590,1739209839366,-1559.31,0.00012054,2]
[352631592,1739209839376,-500.0,0.00012054,2]
[352631593,1739209839385,-500.0,0.00012054,2]
[352631595,1739209839394,-1628.87873683,0.00012054,2]
[352631619,1739209839622,-301.79,0.00010958,2]
[352631662,1739209840026,-198.21,0.00010958,2]
[352631663,1739209840040,-500.0,0.00011095,2]
[352631664,1739209840050,-500.0,0.00011232,2]
[352631665,1739209840060,-322.01684707,0.00011369,2]
[352631666,1739209840073,-177.98315293,0.00011369,2]
[352631667,1739209840082,-500.0,0.00011506,2]
[352631668,1739209840091,-500.0,0.00011643,2]
[352631669,1739209840101,-500.0,0.0001178,2]
[352631670,1739209840112,-500.0,0.00011917,2]
[352631671,1739209840122,-4120.61126317,0.00012054,2]
[352631673,1739209840132,-589.11,0.00012054,2]
[352631675,1739209840141,-565.89,0.00012054,2]
[352631677,1739209840151,-500.0,0.00012054,2]
[352631679,1739209840160,-500.0,0.00012054,2]
[352631681,1739209840170,-607.83,0.00012054,2]
[352631683,1739209840179,-1082.83,0.00012054,2]
[352631685,1739209840189,-663.82,0.00012054,2]
[352631687,1739209840198,-500.0,0.00012054,2]
[352631689,1739209840208,-500.0,0.00012054,2]
[352631691,1739209840217,-3054.6,0.00012054,2]
[352631693,1739209840227,-1332.67,0.00012054,2]
[352631695,1739209840239,-500.0,0.00012054,2]
[352631697,1739209840248,-151.0,0.00012054,2]
[352631699,1739209840258,-1339.57,0.00012054,2]
[352631701,1739209840267,-500.0,0.00012054,2]
[352631703,1739209840278,-619.65,0.00012054,2]
[352631705,1739209840287,-151.0,0.00012054,2]
[352631707,1739209840297,-1100.39,0.00012054,2]
[352631709,1739209840307,-500.0,0.00012054,2]
[352631711,1739209840317,-1611.17,0.00012054,2]
[352631713,1739209840328,-748.63,0.00012054,2]
[352631715,1739209840338,-5122.84,0.00012054,2]
[352631717,1739209840347,-500.0,0.00012054,2]
[352631719,1739209840357,-240.05,0.00012054,2]
[352631721,1739209840366,-500.0,0.00012054,2]
[352631723,1739209840375,-500.0,0.00012054,2]
[352631725,1739209840384,-500.0,0.00012054,2]
[352631727,1739209840394,-388.10213026,0.00012191,2]
[352631729,1739209840403,-500.0,0.00012191,2]
[352631731,1739209840413,-500.0,0.00012191,2]
[352631733,1739209840422,-500.0,0.00012191,2]
[352631735,1739209840432,-500.0,0.00012191,2]
[352631737,1739209840441,-500.0,0.00012191,2]
[352631739,1739209840451,-500.0,0.00012191,2]
[352631741,1739209840461,-500.0,0.00012191,2]
[352631743,1739209840470,-7678.08,0.00012191,2]
[352631745,1739209840479,-500.0,0.00012191,2]
[352631747,1739209840491,-500.0,0.00012191,2]
[352631749,1739209840500,-526.54,0.00012191,2]
[352631751,1739209840510,-500.0,0.00012191,2]
[352631753,1739209840520,-500.0,0.00012191,2]
[352631755,1739209840530,-502.34,0.00012191,2]
[352631757,1739209840539,-711.8,0.00012191,2]
[352631759,1739209840549,-1559.31,0.00012191,2]
[352631761,1739209840558,-500.0,0.00012191,2]
[352631763,1739209840567,-500.0,0.00012191,2]
[352631765,1739209840577,-5749.49,0.00012191,2]
[352631767,1739209840587,-589.11,0.00012191,2]
[352631769,1739209840596,-565.89,0.00012191,2]
[352631771,1739209840605,-500.0,0.00012191,2]
[352631773,1739209840615,-500.0,0.00012191,2]
[352631775,1739209840624,-607.83,0.00012191,2]
[352631777,1739209840633,-1082.83,0.00012191,2]
[352631779,1739209840643,-663.82,0.00012191,2]
[352631781,1739209840652,-500.0,0.00012191,2]
[352631783,1739209840661,-500.0,0.00012191,2]
[352631785,1739209840671,-3054.6,0.00012191,2]
[352631787,1739209840680,-1332.67,0.00012191,2]
[352631789,1739209840689,-612.5,0.00012191,2]
[352631791,1739209840699,-1339.57,0.00012191,2]
[352631793,1739209840708,-207.185772,0.00012191,2]
[352631795,1739209840717,-207.185772,0.00012191,2]
[352631797,1739209840727,-500.0,0.00012191,2]
[352631799,1739209840736,-619.65,0.00012191,2]
[352631801,1739209840745,-1100.39,0.00012191,2]
[352631803,1739209840755,-500.0,0.00012191,2]
[352631805,1739209840764,-1611.17,0.00012191,2]
[352631807,1739209840773,-748.63,0.00012191,2]
[352631809,1739209840782,-5122.84,0.00012191,2]
[352631811,1739209840791,-500.0,0.00012191,2]
[352631813,1739209840800,-500.0,0.00012191,2]
[352631815,1739209840810,-500.0,0.00012191,2]
[352631817,1739209840819,-500.0,0.00012191,2]
[352631819,1739209840830,-151.0,0.000122,2]
[352631821,1739209840839,-712.760873,0.00012319,2]
[352631823,1739209840849,-712.760873,0.00012319,2]
[352631825,1739209840859,-151.0,0.00012319,2]
[352631827,1739209840868,-316.873002,0.00012319,2]
[352631829,1739209840877,-316.873002,0.00012319,2]
[352631831,1739209840887,-500.0,0.00012328,2]
[352631833,1739209840896,-500.0,0.00012328,2]
[352631835,1739209840905,-500.0,0.00012328,2]
[352631837,1739209840915,-500.0,0.00012328,2]
[352631839,1739209840924,-500.0,0.00012328,2]
[352631842,1739209840933,-500.0,0.00012328,2]
[352631844,1739209840943,-500.0,0.00012328,2]
[352631846,1739209840954,-7678.08,0.00012328,2]
[352631848,1739209840963,-500.0,0.00012328,2]
[352631849,1739209840972,-539.65,0.00012328,2]
[352631851,1739209840981,-526.54,0.00012328,2]
[352631853,1739209840991,-500.0,0.00012328,2]
[352631855,1739209841001,-480.09,0.00012328,2]
[352631858,1739209841010,-502.34,0.00012328,2]
[352631860,1739209841020,-711.8,0.00012328,2]
[352631862,1739209841029,-1559.31,0.00012328,2]
[352631864,1739209841039,-500.0,0.00012328,2]
[352631866,1739209841048,-500.0,0.00012328,2]
[352631868,1739209841058,-5749.49,0.00012328,2]
[352631869,1739209841067,-589.11,0.00012328,2]
[352631871,1739209841078,-565.89,0.00012328,2]
[352631873,1739209841088,-451.68,0.00012328,2]
[352631875,1739209841097,-151.0,0.00012328,2]
[352631877,1739209841108,-446.53,0.00012328,2]
[352631879,1739209841118,-607.83,0.00012328,2]
[352631881,1739209841128,-1082.83,0.00012328,2]
[352631883,1739209841138,-663.82,0.00012328,2]
[352631886,1739209841149,-172.0,0.00012328,2]
[352631888,1739209841159,-500.0,0.00012328,2]
[352631889,1739209841168,-3054.6,0.00012328,2]
[352631891,1739209841178,-1332.67,0.00012328,2]
[352631894,1739209841187,-151.0,0.00012328,2]
[352631896,1739209841197,-1339.57,0.00012328,2]
[352631898,1739209841207,-500.0,0.00012328,2]
[352631900,1739209841216,-619.65,0.00012328,2]
[352631902,1739209841226,-151.0,0.00012328,2]
[352631904,1739209841239,-646.16,0.00012328,2]
[352631905,1739209841248,-1100.39,0.00012328,2]
[352631907,1739209841258,-1611.17,0.00012328,2]
[352631909,1739209841267,-748.63,0.00012328,2]
[352631912,1739209841278,-5122.84,0.00012328,2]
[352631914,1739209841288,-500.0,0.00012328,2]
[352631916,1739209841297,-500.0,0.00012328,2]
[352631918,1739209841308,-500.0,0.00012328,2]
[352631920,1739209841318,-500.0,0.00012418,2]
[352631922,1739209841330,-1000.0,0.00012418,2]
[352631924,1739209841340,-500.0,0.00012465,2]
[352631926,1739209841351,-500.0,0.00012465,2]
[352631928,1739209841360,-500.0,0.00012465,2]
[352631930,1739209841369,-500.0,0.00012465,2]
[352631932,1739209841378,-500.0,0.00012465,2]
[352631934,1739209841388,-500.0,0.00012465,2]
[352631936,1739209841397,-500.0,0.00012465,2]
[352631938,1739209841406,-151.0,0.00012465,2]
[352631940,1739209841416,-151.0,0.00012465,2]
[352631942,1739209841425,-7678.08,0.00012465,2]
[352631944,1739209841435,-500.0,0.00012465,2]
[352631946,1739209841444,-352.876726,0.00012465,2]
[352631948,1739209841453,-526.54,0.00012465,2]
[352631950,1739209841463,-352.876726,0.00012465,2]
[352631952,1739209841472,-500.0,0.00012465,2]
[352631954,1739209841482,-502.34,0.00012465,2]
[352631956,1739209841491,-711.8,0.00012465,2]
[352631958,1739209841501,-1559.31,0.00012465,2]
[352631960,1739209841510,-500.0,0.00012465,2]
[352631962,1739209841520,-500.0,0.00012465,2]
[352631972,1739209841613,-5749.49,0.00012465,2]
[352631974,1739209841622,-589.11,0.00012465,2]
[352631977,1739209841632,-565.89,0.00012465,2]
[352631979,1739209841641,-151.0,0.00012465,2]
[352631981,1739209841651,-231.606346,0.00012465,2]
[352631983,1739209841660,-607.83,0.00012465,2]
[352631985,1739209841669,-1082.83,0.00012465,2]
[352631987,1739209841678,-663.82,0.00012465,2]
[352631989,1739209841687,-500.0,0.00012465,2]
[352631991,1739209841696,-3054.6,0.00012465,2]
[352631993,1739209841706,-1332.67,0.00012465,2]
[352631995,1739209841716,-1339.57,0.00012465,2]
[352631997,1739209841725,-207.185772,0.00012465,2]
[352631999,1739209841735,-207.185772,0.00012465,2]
[352632001,1739209841744,-500.0,0.00012465,2]
[352632003,1739209841753,-619.65,0.00012465,2]
[352632005,1739209841762,-1100.39,0.00012465,2]
[352632006,1739209841771,-1611.17,0.00012465,2]
[352632007,1739209841780,-748.63,0.00012465,2]
[352632008,1739209841789,-5122.84,0.00012465,2]
[352632009,1739209841799,-500.0,0.00012465,2]
[352632010,1739209841808,-500.0,0.00012465,2]
[352632011,1739209841818,-500.0,0.00012465,2]
[352632012,1739209841827,-151.0,0.000126,2]
[352632013,1739209841837,-500.0,0.00012602,2]
[352632014,1739209841846,-500.0,0.00012602,2]
[352632015,1739209841855,-500.0,0.00012602,2]
[352632016,1739209841864,-500.0,0.00012602,2]
[352632018,1739209841873,-500.0,0.00012602,2]
[352632020,1739209841883,-500.0,0.00012602,2]
[352632022,1739209841892,-500.0,0.00012602,2]
[352632024,1739209841901,-7678.08,0.00012602,2]
[352632026,1739209841910,-500.0,0.00012602,2]
[352632028,1739209841919,-526.54,0.00012602,2]
[352632030,1739209841929,-500.0,0.00012602,2]
[352632032,1739209841938,-502.34,0.00012602,2]
[352632035,1739209841947,-711.8,0.00012602,2]
[352632036,1739209841956,-1559.31,0.00012602,2]
[352632038,1739209841965,-168.9,0.00012602,2]
[352632040,1739209841974,-500.0,0.00012602,3]
[352632042,1739209841983,-500.0,0.00012602,2]
[352632044,1739209841992,-5749.49,0.00012602,2]
[352632047,1739209842001,-589.11,0.00012602,2]
[352632048,1739209842010,-565.89,0.00012602,2]
[352632050,1739209842020,-607.83,0.00012602,2]
[352632052,1739209842029,-1082.83,0.00012602,2]
[352632054,1739209842038,-663.82,0.00012602,2]
[352632056,1739209842047,-500.0,0.00012602,2]
[352632058,1739209842057,-3054.6,0.00012602,2]
[352632060,1739209842067,-1332.67,0.00012602,2]
[352632062,1739209842076,-1339.57,0.00012602,2]
[352632064,1739209842085,-500.0,0.00012602,2]
[352632067,1739209842094,-619.65,0.00012602,2]
[352632069,1739209842104,-1100.39,0.00012602,2]
[352632071,1739209842113,-1611.17,0.00012602,2]
[352632073,1739209842123,-748.63,0.00012602,2]
[352632074,1739209842132,-5122.84,0.00012602,2]
[352632076,1739209842142,-500.0,0.00012602,2]
[352632079,1739209842152,-500.0,0.00012602,2]
[352632081,1739209842161,-500.0,0.00012602,2]
[352632082,1739209842171,-500.0,0.00012739,2]
[352632085,1739209842180,-500.0,0.00012739,2]
[352632087,1739209842189,-500.0,0.00012739,2]
[352632089,1739209842198,-500.0,0.00012739,2]
[352632090,1739209842207,-500.0,0.00012739,2]
[352632093,1739209842217,-500.0,0.00012739,2]
[352632095,1739209842227,-193.292798,0.00012739,2]
[352632097,1739209842238,-193.292798,0.00012739,2]
[352632099,1739209842247,-500.0,0.00012739,2]
[352632101,1739209842257,-151.0,0.00012739,2]
[352632103,1739209842266,-151.0,0.00012739,2]
[352632105,1739209842275,-151.0,0.00012739,2]
[352632107,1739209842287,-7678.08,0.00012739,2]
[352632109,1739209842296,-500.0,0.00012739,2]
[352632111,1739209842306,-526.54,0.00012739,2]
[352632113,1739209842318,-500.0,0.00012739,2]
[352632115,1739209842329,-502.34,0.00012739,2]
[352632117,1739209842338,-711.8,0.00012739,2]
[352632119,1739209842347,-1559.31,0.00012739,2]
[352632121,1739209842356,-500.0,0.00012739,2]
[352632123,1739209842365,-5749.49,0.00012739,2]
[352632125,1739209842374,-589.11,0.00012739,2]
[352632127,1739209842383,-151.0,0.00012739,2]
[352632129,1739209842392,-565.89,0.00012739,2]
[352632131,1739209842401,-607.83,0.00012739,2]
[352632133,1739209842411,-1082.83,0.00012739,2]
[352632135,1739209842420,-663.82,0.00012739,2]
[352632137,1739209842429,-500.0,0.00012739,2]
[352632139,1739209842438,-3054.6,0.00012739,2]
[352632141,1739209842448,-1332.67,0.00012739,2]
[352632143,1739209842457,-1339.57,0.00012739,2]
[352632145,1739209842467,-500.0,0.00012739,2]
[352632146,1739209842475,-619.65,0.00012739,2]
[352632148,1739209842483,-151.0,0.00012739,2]
[352632150,1739209842493,-1100.39,0.00012739,2]
[352632153,1739209842502,-1611.17,0.00012739,2]
[352632155,1739209842511,-748.63,0.00012739,2]
[352632156,1739209842520,-5122.84,0.00012739,2]
[352632158,1739209842529,-607.56733296,0.00012739,2]
[352632161,1739209842539,-500.0,0.00012739,2]
[352632163,1739209842548,-500.0,0.00012876,2]
[352632165,1739209842558,-500.0,0.00012876,2]
[352632167,1739209842567,-500.0,0.00012876,2]
[352632169,1739209842576,-500.0,0.00012876,2]
[352632171,1739209842585,-500.0,0.00012876,2]
[352632172,1739209842594,-500.0,0.00012876,2]
[352632174,1739209842603,-500.0,0.00012876,2]
[352632176,1739209842613,-7678.08,0.00012876,2]
[352632178,1739209842622,-500.0,0.00012876,2]
[352632180,1739209842631,-526.54,0.00012876,2]
[352632183,1739209842641,-500.0,0.00012876,2]
[352632185,1739209842650,-502.34,0.00012876,2]
[352632187,1739209842661,-711.8,0.00012876,2]
[352632189,1739209842670,-1559.31,0.00012876,2]
[352632191,1739209842679,-500.0,0.00012876,2]
[352632193,1739209842688,-5749.49,0.00012876,2]
[352632195,1739209842697,-589.11,0.00012876,2]
[352632197,1739209842706,-565.89,0.00012876,2]
[352632199,1739209842715,-712.760873,0.00012876,2]
[352632201,1739209842724,-712.760873,0.00012876,2]
[352632203,1739209842734,-607.83,0.00012876,2]
[352632205,1739209842743,-151.0,0.00012876,2]
[352632207,1739209842752,-1082.83,0.00012876,2]
[352632210,1739209842762,-316.873002,0.00012876,2]
[352632213,1739209842771,-316.873002,0.00012876,2]
[352632216,1739209842781,-663.82,0.00012876,2]
[352632217,1739209842790,-500.0,0.00012876,2]
[352632220,1739209842800,-3054.6,0.00012876,2]
[352632223,1739209842810,-1332.67,0.00012876,2]
[352632225,1739209842820,-1339.57,0.00012876,2]
[352632227,1739209842829,-207.185772,0.00012876,2]
[352632230,1739209842838,-207.185772,0.00012876,2]
[352632234,1739209842848,-500.0,0.00012876,2]
[352632237,1739209842857,-619.65,0.00012876,2]
[352632241,1739209842866,-1100.39,0.00012876,2]
[352632244,1739209842875,-1611.17,0.00012876,2]
[352632248,1739209842884,-748.63,0.00012876,2]
[352632252,1739209842894,-5122.84,0.00012876,2]
[352632256,1739209842903,-500.0,0.00012876,2]
[352632260,1739209842912,-176.57946956,0.000129,2]
[352632264,1739209842921,-176.57946952,0.000129,2]
[352632267,1739209842930,-151.0,0.00013,2]
[352632269,1739209842939,-500.0,0.00013013,2]
[352632271,1739209842949,-500.0,0.00013013,2]
[352632273,1739209842958,-500.0,0.00013013,2]
[352632275,1739209842967,-500.0,0.00013013,2]
[352632278,1739209842977,-500.0,0.00013013,2]
[352632280,1739209842987,-500.0,0.00013013,2]
[352632282,1739209842996,-500.0,0.00013013,2]
[352632284,1739209843006,-7678.08,0.00013013,2]
[352632286,1739209843015,-500.0,0.00013013,2]
[352632288,1739209843025,-526.54,0.00013013,2]
[352632290,1739209843034,-500.0,0.00013013,2]
[352632292,1739209843043,-502.34,0.00013013,2]
[352632294,1739209843053,-711.8,0.00013013,2]
[352632296,1739209843063,-1559.31,0.00013013,2]
[352632298,1739209843072,-500.0,0.00013013,2]
[352632300,1739209843083,-5749.49,0.00013013,2]
[352632302,1739209843092,-589.11,0.00013013,2]
[352632304,1739209843102,-565.89,0.00013013,2]
[352632306,1739209843112,-607.83,0.00013013,2]
[352632308,1739209843121,-1082.83,0.00013013,2]
[352632310,1739209843131,-663.82,0.00013013,2]
[352632312,1739209843140,-500.0,0.00013013,2]
[352632314,1739209843151,-3054.6,0.00013013,2]
[352632316,1739209843160,-1332.67,0.00013013,2]
[352632318,1739209843169,-1339.57,0.00013013,2]
[352632320,1739209843178,-500.0,0.00013013,2]
[352632322,1739209843188,-619.65,0.00013013,2]
[352632324,1739209843197,-1100.39,0.00013013,2]
[352632326,1739209843207,-1611.17,0.00013013,2]
[352632328,1739209843216,-748.63,0.00013013,2]
[352632330,1739209843225,-5122.84,0.00013013,2]
[352632332,1739209843238,-500.0,0.00013013,2]
[352632334,1739209843247,-500.0,0.0001315,2]
[352632336,1739209843256,-500.0,0.0001315,2]
[352632338,1739209843266,-500.0,0.0001315,2]
[352632340,1739209843276,-500.0,0.0001315,2]
[352632342,1739209843286,-500.0,0.0001315,2]
[352632344,1739209843295,-500.0,0.0001315,2]
[352632346,1739209843304,-500.0,0.0001315,2]
[352632348,1739209843314,-151.0,0.0001315,2]
[352632350,1739209843324,-151.0,0.0001315,2]